bitfinex/quotes_ETHUSD_20250815
["timestamp","ask_amount","ask_price","bid_price","bid_amount"]
[1755251472867,5.1136553,4640.3,4640.2,0.0008]
[1755251473362,5.1156553,4640.3,4640.2,0.0008]
[1755251474065,11.91724431,4640.3,4640.2,0.0008]
[1755251474667,2.1552183,4640.0,4639.3,0.001]
[1755251474961,15.7240122,4639.4,4639.3,0.001]
[1755251475543,16.6086122,4639.4,4639.3,0.001]
[1755251476837,14.45316107,4639.4,4639.3,0.001]
[1755251477368,16.6086122,4639.4,4639.3,0.001]
[1755251477837,17.34879565,4639.4,4639.3,0.001]
[1755251478364,20.34879565,4639.4,4639.3,0.001]
[1755251479337,31.61879565,4639.4,4639.3,0.001]
[1755251480167,15.1546,4639.4,4639.3,0.001]
[1755251480372,16.42545113,4639.4,4639.3,0.001]
[1755251480554,20.12675113,4639.4,4639.3,0.001]
[1755251480864,20.12675113,4639.4,4639.3,0.0018]
[1755251480865,14.27,4639.4,4639.3,0.0018]
[1755251481460,16.42545113,4639.4,4639.3,0.0018]
[1755251481659,17.31005113,4639.4,4639.3,0.0018]
[1755251483170,24.3886122,4639.4,4639.3,0.0018]
[1755251483380,5.70549759,4639.3,4639.2,0.001]
[1755251483538,18.72424452,4638.9,4638.8,0.001]
[1755251483745,24.08423055,4638.9,4638.8,0.001]
[1755251484059,25.00483055,4638.9,4638.8,0.001]
[1755251485567,21.73283055,4638.9,4638.8,0.001]
[1755251485768,6.272,4638.9,4638.8,0.001]
[1755251486344,2.15554109,4639.3,4638.8,0.001]
[1755251486647,5.15559154,4639.1,4638.8,0.001]
[1755251486850,2.15553845,4639.3,4638.8,0.001]
[1755251487053,3.0,4639.1,4638.8,0.001]
[1755251487275,3.272,4639.2,4638.8,0.001]
[1755251487443,3.272,4639.2,4638.8,0.9217]
[1755251487770,3.272,4639.1,4638.8,0.001]
[1755251488176,4.23,4639.0,4638.8,0.001]
[1755251488376,7.502,4639.1,4638.8,0.001]
[1755251488676,3.272,4639.1,4638.8,0.001]
[1755251490350,3.0,4639.2,4638.8,0.001]
[1755251490575,3.272,4639.3,4638.8,0.001]
[1755251490884,5.4275059,4639.3,4638.8,0.001]
[1755251491983,3.272,4639.3,4638.8,0.001]
[1755251492385,5.89600362,4639.3,4638.8,0.001]
[1755251492550,3.7405,4639.3,4638.8,0.001]
[1755251493082,3.272,4639.3,4638.8,0.001]
[1755251493281,5.15568345,4638.9,4638.8,0.001]
[1755251493484,8.42768345,4638.9,4638.8,0.001]
[1755251493646,9.34828345,4638.9,4638.8,0.001]
[1755251497084,6.34828345,4638.9,4638.8,0.001]
[1755251500860,9.89828345,4638.9,4638.8,0.001]
[1755251503186,21.16828345,4638.9,4638.8,0.001]
[1755251504990,18.16828345,4638.9,4638.8,0.001]
[1755251508820,18.16748345,4638.9,4638.8,0.001]
[1755251510790,17.71538345,4638.9,4638.8,0.001]
[1755251511191,17.24688345,4638.9,4638.8,0.001]
[1755251513015,4.227,4638.1,4638.0,0.9194]
[1755251514005,4.227,4638.1,4638.0,0.001]
[1755251515501,4.227,4638.1,4638.0,0.4473]
[1755251516013,4.227,4638.1,4638.0,0.001]
[1755251519699,6.38305528,4638.1,4638.0,0.001]
[1755251520597,7.499,4638.1,4638.0,0.001]
[1755251521196,9.65505528,4638.1,4638.0,0.001]
[1755251522127,2.15612036,4638.0,4637.6,0.001]
[1755251523433,2.15611007,4638.0,4637.6,0.001]
[1755251524090,2.15615412,4637.9,4637.6,0.001]
[1755251524295,2.1561108,4638.0,4637.6,0.001]
[1755251524832,2.15615945,4637.9,4637.6,0.001]
[1755251525037,2.15624124,4637.7,4637.6,0.001]
[1755251525212,9.67540405,4637.7,4637.6,0.001]
[1755251525430,10.60554124,4637.7,4637.6,0.001]
[1755251527150,11.15554124,4637.7,4637.6,0.001]
[1755251527461,2.70633423,4637.5,4637.4,0.001]
[1755251527776,2.15652023,4637.1,4636.7,0.001]
[1755251527975,5.44868304,4637.1,4636.7,0.001]
[1755251528131,6.37882023,4637.1,4636.7,0.001]
[1755251530678,6.37882023,4637.1,4637.0,0.0018]
[1755251530837,7.07936742,4637.1,4637.0,0.0018]
[1755251532673,10.62936742,4637.1,4637.0,0.0018]
[1755251533630,10.07936742,4637.1,4637.0,0.0018]
[1755251535441,10.62936742,4637.1,4637.0,0.0018]
[1755251537038,10.16576942,4637.1,4637.0,0.0018]
[1755251537443,10.71576942,4637.1,4637.0,0.0018]
[1755251537975,5.70665976,4636.8,4636.7,0.001]
[1755251538174,22.54822083,4636.8,4636.7,0.001]
[1755251538372,23.49852083,4636.8,4636.7,0.001]
[1755251538873,23.49852083,4636.8,4636.0,0.001]
[1755251538874,3.55,4636.5,4636.0,0.001]
[1755251539089,3.55,4636.3,4636.0,0.001]
[1755251539276,2.70707845,4635.9,4635.8,0.001]
[1755251539477,9.00024126,4635.9,4635.8,0.001]
[1755251539641,9.47467845,4635.9,4635.8,0.001]
[1755251539848,10.63092564,4635.9,4635.8,0.001]
[1755251542189,14.85792564,4635.9,4635.8,0.001]
[1755251542363,2.15763695,4634.7,4634.6,0.4501]
[1755251542563,5.43063695,4634.7,4634.6,0.4501]
[1755251542764,3.273,4634.7,4634.1,0.4762]
[1755251542984,2.15768351,4634.6,4634.1,0.4762]
[1755251543184,3.273,4634.5,4634.1,0.4762]
[1755251543406,3.273,4634.5,4633.8,2.15804447]
[1755251543575,5.43073246,4634.5,4634.0,0.9339]
[1755251543771,3.273,4634.5,4634.1,0.9339]
[1755251543976,3.273,4634.5,4634.2,0.9339]
[1755251544301,3.273,4634.5,4633.8,2.15804513]
[1755251544503,3.273,4634.5,4634.3,0.4577]
[1755251544809,2.15782318,4634.3,4633.4,2.15824047]
[1755251545006,2.15791631,4634.1,4633.6,0.4587]
[1755251545204,13.56856107,4633.7,4633.6,0.001]
[1755251545412,19.00066366,4633.7,4633.6,0.001]
[1755251545974,0.55,4633.6,4632.5,0.4762]
[1755251546179,2.15861503,4632.6,4632.5,0.4762]
[1755251546508,2.15861503,4632.6,4631.7,3.87553919]
[1755251546509,16.84156107,4632.6,4631.8,0.4577]
[1755251546689,2.15870556,4632.5,4632.1,0.4577]
[1755251546890,3.29316281,4632.4,4631.0,0.4577]
[1755251547087,2.15881976,4632.2,4631.1,0.86959]
[1755251547390,3.273,4632.1,4631.6,2.15906731]
[1755251547590,3.273,4632.0,4631.7,0.9339]
[1755251547908,3.274,4631.9,4631.7,0.9339]
[1755251548112,3.274,4631.9,4631.6,2.15906731]
[1755251548413,3.274,4631.9,4631.8,0.9339]
[1755251549176,3.274,4631.9,4630.0,5.179]
[1755251549511,19.00153606,4631.9,4630.4,0.9339]
[1755251549712,16.84256107,4631.9,4630.4,0.9339]
[1755251549913,3.274,4631.8,4631.2,2.15922236]
[1755251550110,3.274,4631.8,4631.1,2.15930912]
[1755251550283,5.43300411,4631.8,4631.2,0.4577]
[1755251550497,3.274,4631.8,4631.2,0.4577]
[1755251550899,3.2732,4631.8,4631.2,0.4577]
[1755251551123,3.275,4631.7,4631.2,0.4577]
[1755251551305,3.275,4631.7,4630.8,2.61711723]
[1755251551498,2.15908119,4631.6,4630.8,2.15941723]
[1755251551697,2.15908119,4631.6,4630.8,2.63893466]
[1755251551898,2.15914632,4631.5,4630.7,0.4762]
[1755251552227,3.275,4631.4,4630.7,0.4762]
[1755251552409,3.275,4631.4,4630.8,0.4577]
[1755251552925,3.275,4631.3,4630.9,2.15940745]
[1755251553418,3.275,4631.3,4630.6,2.15952963]
[1755251553622,3.275,4631.3,4630.5,0.9339]
[1755251553830,3.275,4631.3,4630.9,2.15936306]
[1755251554337,3.275,4631.3,4630.9,0.4577]
[1755251554542,3.275,4631.3,4630.8,2.15944554]
[1755251554707,3.275,4631.3,4630.9,2.15938561]
[1755251554913,3.275,4631.3,4630.8,3.09334732]
[1755251555113,3.275,4631.3,4630.9,2.15940027]
[1755251555544,3.275,4631.3,4630.8,0.9339]
[1755251555744,3.275,4631.3,4630.8,2.15944472]
[1755251556067,3.275,4631.3,4630.9,2.1594051]
[1755251556277,3.275,4631.3,4630.8,2.15944217]
[1755251556475,3.275,4631.3,4630.8,2.15941286]
[1755251557032,3.275,4631.3,4630.9,2.15938604]
[1755251557272,3.275,4631.3,4630.9,0.9339]
[1755251557562,0.9051,4631.8,4631.0,2.15935334]
[1755251557563,3.06409556,4631.8,4631.0,2.15935334]
[1755251557733,3.276,4631.7,4631.0,2.15935334]
[1755251558156,3.276,4631.7,4630.9,0.9339]
[1755251558362,3.276,4631.7,4630.8,2.15944501]
[1755251558561,0.4511,4631.6,4630.8,2.15944501]
[1755251558883,3.0,4631.3,4630.8,0.001]
[1755251559030,2.1593142,4631.1,4630.8,0.001]
[1755251559230,2.15940184,4631.0,4630.8,0.001]
[1755251559430,3.06450184,4631.0,4630.8,0.001]
[1755251559686,2.15940745,4630.9,4630.8,0.001]
[1755251559829,19.65323133,4630.9,4630.8,0.001]
[1755251560140,20.18306852,4630.9,4630.8,0.001]
[1755251560869,23.45906852,4630.9,4630.8,0.001]
[1755251561567,23.91508574,4630.9,4630.8,0.001]
[1755251561766,25.202308,4630.9,4630.8,0.001]
[1755251561967,10.17864693,4630.9,4630.8,0.001]
[1755251562152,11.63374693,4630.9,4630.8,0.001]
[1755251563166,5.70954735,4630.6,4630.5,0.001]
[1755251563366,16.56856107,4629.9,4629.8,0.001]
[1755251563670,22.00443493,4629.9,4629.8,0.001]
[1755251563857,22.90953493,4629.9,4629.8,0.001]
[1755251564255,23.45953493,4629.9,4629.8,0.001]
[1755251564566,24.14094206,4629.9,4629.8,0.001]
[1755251565336,25.16671069,4629.9,4629.8,0.001]
[1755251566446,24.59695928,4629.9,4629.8,0.001]
[1755251566879,25.24597528,4629.9,4629.8,0.001]
[1755251569284,25.4439639,4629.9,4629.8,0.001]
[1755251569857,2.16024937,4629.1,4628.8,0.001]
[1755251570251,2.16028699,4629.1,4628.9,0.4577]
[1755251570467,5.43729379,4629.0,4628.9,0.9339]
[1755251570876,3.277,4629.0,4628.8,0.001]
[1755251571071,0.02016281,4628.9,4628.8,0.001]
[1755251571275,2.18050327,4628.9,4628.8,0.001]
[1755251571653,3.73301722,4629.0,4628.8,0.001]
[1755251572602,0.45601722,4628.9,4628.8,0.001]
[1755251572756,3.73301722,4628.9,4628.8,0.001]
[1755251573156,3.73301722,4628.9,4628.8,0.4669]
[1755251573352,0.45601722,4628.9,4628.8,0.9422]
[1755251573780,3.73301722,4628.9,4628.8,0.9422]
[1755251573976,3.73301722,4628.9,4628.8,0.001]
[1755251574202,5.89335768,4628.9,4628.8,0.001]
[1755251574579,6.31146768,4628.9,4628.8,0.001]
[1755251574783,7.26516768,4628.9,4628.8,0.001]
[1755251575091,7.91426468,4628.9,4628.8,0.001]
[1755251575389,6.96056468,4628.9,4628.8,0.001]
[1755251575689,7.91426468,4628.9,4628.8,0.001]
[1755251575859,10.91426468,4628.9,4628.8,0.001]
[1755251576063,11.11303721,4628.9,4628.8,0.001]
[1755251576474,10.15933721,4628.9,4628.8,0.001]
[1755251576766,6.88233721,4628.9,4628.8,0.001]
[1755251577071,3.0,4628.8,4628.2,0.9412]
[1755251577293,5.4394391,4628.7,4628.2,0.9412]
[1755251577593,3.279,4628.6,4628.3,0.9628062]
[1755251577784,3.279,4628.6,4628.3,2.16062042]
[1755251577981,3.279,4628.6,4628.5,2.16052716]
[1755251578182,3.28,4628.6,4628.5,0.9412]
[1755251578396,3.28,4628.6,4628.5,3.10172716]
[1755251579270,0.76368982,4628.7,4628.6,2.16048049]
[1755251579581,3.28,4628.7,4628.6,0.9412]
[1755251580300,3.28,4628.7,4628.6,3.10168049]
[1755251580519,4.31180731,4628.7,4628.6,0.9412]
[1755251581027,4.31180731,4628.7,4628.5,2.1605202]
[1755251581318,0.45858103,4628.6,4628.3,2.16161889]
[1755251581520,3.28,4628.5,4628.4,3.10177384]
[1755251581894,0.45858103,4628.6,4628.5,2.16052716]
[1755251582095,0.45858103,4628.6,4628.5,3.12333243]
[1755251582296,3.85422628,4628.7,4628.6,2.16048049]
[1755251582728,3.85422628,4628.7,4628.6,3.10168049]
[1755251582923,4.80022628,4628.7,4628.6,3.10168049]
[1755251583127,4.80022628,4628.7,4628.6,3.18373354]
[1755251583300,4.68613943,4628.7,4628.6,3.65903354]
[1755251584021,4.68613943,4628.7,4628.6,3.10168049]
[1755251584237,4.68613943,4628.7,4628.6,2.16048049]
[1755251584826,4.68613943,4628.7,4628.3,0.4669]
[1755251585123,3.281,4628.6,4628.3,0.001]
[1755251585294,3.74013943,4628.6,4628.3,2.16161564]
[1755251585900,3.74013943,4628.6,4628.3,0.001]
[1755251586101,3.74013943,4628.6,4628.4,2.16056983]
[1755251586534,4.227,4628.7,4628.4,2.16056983]
[1755251586535,3.74013943,4628.5,4628.4,2.16056983]
[1755251586704,3.74013943,4628.5,4628.4,2.62646983]
[1755251587037,3.74013943,4628.5,4628.4,2.16056983]
[1755251587228,3.74113943,4628.5,4628.4,3.10176983]
[1755251588142,3.74113943,4628.5,4628.4,2.16056983]
[1755251588510,0.45913943,4628.5,4628.4,2.16056983]
[1755251589342,0.45913943,4628.5,4628.4,3.10176983]
[1755251590043,0.45913943,4628.5,4628.4,2.16056983]
[1755251590637,0.45913943,4628.5,4628.4,2.16136983]
[1755251590942,4.68613943,4628.5,4628.4,2.16136983]
[1755251593241,4.68533943,4628.5,4628.4,2.62726983]
[1755251593835,4.68533943,4628.5,4628.4,2.16136983]
[1755251594051,0.002,4628.8,4628.7,2.16043381]
[1755251594544,0.76368982,4629.3,4629.2,2.16020046]
[1755251594744,0.76368982,4629.3,4629.2,3.10140046]
[1755251595241,0.2,4629.6,4629.5,2.16006048]
[1755251595440,0.2,4629.6,4629.5,3.10126048]
[1755251595656,0.2,4629.6,4629.5,3.62739926]
[1755251596047,0.2,4629.6,4629.5,2.68619926]
[1755251596656,0.2,4629.6,4629.5,3.62739926]
[1755251597151,0.002,4630.5,4630.4,2.15964063]
[1755251597852,0.002,4630.5,4629.8,2.15988286]
[1755251598052,2.15968727,4630.3,4629.3,3.281]
[1755251598358,0.9537,4630.2,4629.4,2.16006206]
[1755251598555,0.4918,4630.2,4629.3,3.281]
[1755251598720,0.9537,4630.1,4629.1,2.16020314]
[1755251598916,3.30116281,4630.4,4628.7,3.285]
[1755251598917,2.15991392,4629.9,4629.0,2.16026281]
[1755251599145,4.2387,4629.8,4629.0,2.16026281]
[1755251599345,3.285,4629.8,4629.1,2.16024233]
[1755251599534,0.9537,4629.7,4629.1,2.16024233]
[1755251599744,0.9537,4629.7,4628.7,3.285]
[1755251599920,0.9537,4629.7,4629.3,2.16015197]
[1755251600119,3.285,4629.7,4629.3,2.16015197]
[1755251600820,3.0,4630.3,4629.5,2.1600157]
[1755251601026,3.286,4630.2,4629.1,0.4659]
[1755251601227,3.286,4630.2,4629.6,2.16000326]
[1755251601552,0.61540739,4630.4,4629.1,0.31015871]
[1755251601767,0.002,4630.5,4629.6,2.15996824]
[1755251601925,0.002,4630.5,4629.9,2.15983114]
[1755251602125,3.286,4630.4,4629.9,2.15983114]
[1755251602550,0.8928,4630.3,4629.8,2.15991749]
[1755251602754,0.8928,4630.2,4629.6,2.16001056]
[1755251602955,0.429,4630.1,4629.6,0.43200784]
[1755251603175,3.286,4630.0,4629.0,3.286]
[1755251603357,0.002,4630.5,4629.8,2.15991835]
[1755251603551,6.09427392,4630.4,4629.0,4.1786]
[1755251603879,3.286,4630.3,4629.9,2.15984847]
[1755251604102,3.286,4630.3,4629.6,2.15998292]
[1755251604252,3.286,4630.3,4629.8,2.15988604]
[1755251604460,3.286,4630.3,4629.9,2.15986151]
[1755251605177,2.80827392,4630.4,4630.0,2.15982011]
[1755251605343,3.285,4630.3,4629.4,0.43]
[1755251605541,3.285,4630.3,4630.0,2.15979486]
[1755251605945,2.37927392,4630.2,4629.5,0.30527474]
[1755251606276,2.37927392,4630.2,4630.1,2.15978056]
[1755251608177,0.002,4630.5,4630.4,2.15964063]
[1755251610277,0.002,4630.5,4630.4,3.05224063]
[1755251610576,0.002,4630.5,4630.4,3.90203541]
[1755251610785,0.002,4630.5,4630.4,3.90283541]
[1755251612285,0.002,4630.5,4630.4,3.01023541]
[1755251612881,0.002,4630.5,4630.4,3.44023541]
[1755251613052,0.002,4630.5,4630.4,3.90283541]
[1755251614296,0.002,4630.5,4630.4,7.18683541]
[1755251616709,0.002,4630.5,4630.4,6.29423541]
[1755251620905,0.002,4630.5,4630.4,7.18683541]
[1755251621997,0.002,4630.5,4630.4,6.72423541]
[1755251622197,0.002,4630.5,4630.4,6.29423541]
[1755251622405,0.002,4630.5,4630.4,6.72423541]
[1755251622704,0.002,4630.5,4630.4,7.18683541]
[1755251624170,0.002,4631.0,4630.9,2.15940745]
[1755251624381,2.80827392,4632.2,4631.4,2.15917433]
[1755251624577,2.80827392,4632.2,4631.4,5.44017433]
[1755251625778,2.37927392,4632.2,4631.4,6.33277433]
[1755251626199,2.37927392,4632.2,4631.4,5.44017433]
[1755251626572,0.429,4632.1,4631.4,5.44017433]
[1755251627207,0.429,4631.8,4631.4,5.44017433]
[1755251631405,0.429,4631.8,4631.4,5.44097433]
[1755251631609,0.429,4631.8,4631.4,6.50099576]
[1755251632017,2.37927392,4632.1,4631.4,6.50099576]
[1755251632387,0.002,4632.5,4632.4,2.15870822]
[1755251632587,0.4871,4632.5,4631.4,1.06082143]
[1755251632802,0.4548,4632.4,4631.5,3.286]
[1755251633009,0.4851,4632.3,4631.6,3.286]
[1755251633210,0.4548,4632.2,4631.6,2.15906043]
[1755251633407,0.4851,4632.1,4631.7,2.15902834]
[1755251633612,0.4548,4632.0,4631.7,2.15902834]
[1755251633797,0.4851,4631.9,4631.7,2.15902834]
[1755251633999,0.9399,4631.8,4631.7,2.15902834]
[1755251634198,0.9399,4631.8,4631.5,2.15908979]
[1755251634528,0.9399,4631.7,4631.5,2.15908979]
[1755251634835,0.9399,4631.6,4631.5,2.15908979]
[1755251635041,0.9399,4631.6,4631.4,3.2878]
[1755251635338,0.9391,4631.5,4631.4,0.0008]
[1755251639129,3.09822771,4631.5,4631.4,0.0008]
[1755251639536,6.38522771,4631.5,4631.4,0.0008]
[1755251639700,9.38522771,4631.5,4631.4,0.0008]
[1755251640694,9.38442771,4631.5,4631.4,0.0008]
[1755251640894,10.80049473,4631.5,4631.4,0.0008]
[1755251641529,13.17976865,4631.5,4631.4,0.0008]
[1755251641926,13.72976865,4631.5,4631.4,0.0008]
[1755251642132,13.98987575,4631.5,4631.4,0.0008]
[1755251642298,13.98987575,4631.5,4628.8,2.16138328]
[1755251642299,2.15983969,4630.0,4629.1,2.16020257]
[1755251642498,2.15983969,4630.0,4628.9,2.16034046]
[1755251642499,3.7721,4629.9,4629.2,2.16018096]
[1755251642741,0.4548,4629.8,4629.2,2.16018096]
[1755251643145,0.4548,4629.8,4629.3,2.16015295]
[1755251643699,0.4548,4629.8,4629.2,2.16019339]
[1755251644158,0.4548,4629.8,4629.3,2.16014858]
[1755251644332,3.287,4629.9,4629.3,2.16014858]
[1755251644543,0.4548,4629.7,4629.3,2.16014858]
[1755251645254,0.4548,4629.7,4629.2,2.1601921]
[1755251645814,0.4851,4629.8,4629.2,2.1601921]
[1755251645815,5.44688561,4629.9,4629.2,2.1601921]
[1755251646016,0.4548,4629.6,4629.2,2.1601921]
[1755251646518,0.9399,4629.6,4629.2,2.1601921]
[1755251647960,0.4548,4629.6,4629.3,2.16015224]
[1755251648126,0.4548,4629.6,4628.8,0.001]
[1755251648328,0.4548,4629.7,4628.8,0.001]
[1755251648666,2.61477106,4629.7,4628.9,2.16034046]
[1755251648957,0.4548,4629.7,4628.9,2.16034046]
[1755251649661,0.4548,4629.7,4629.1,2.16020547]
[1755251650460,0.4548,4629.7,4628.8,0.54573981]
[1755251650630,0.4548,4629.7,4629.0,2.16025506]
[1755251651144,0.4548,4629.7,4629.1,2.16021999]
[1755251651513,2.6147792,4629.7,4629.1,0.0008]
[1755251651717,0.4851,4629.6,4629.1,0.0008]
[1755251652016,2.16006048,4629.5,4629.1,0.0008]
[1755251652248,0.4851,4629.5,4629.1,0.0008]
[1755251652450,0.9399,4629.4,4629.1,0.0008]
[1755251652616,4.2279,4629.4,4629.1,0.0008]
[1755251652827,0.9399,4629.3,4629.1,0.0008]
[1755251653021,2.16020046,4629.2,4629.1,0.0008]
[1755251653220,3.10010046,4629.2,4629.1,0.0008]
[1755251653454,3.50414544,4629.2,4629.1,0.0008]
[1755251653821,3.288,4629.3,4629.1,0.0008]
[1755251654218,2.61500046,4629.2,4629.1,0.0008]
[1755251654419,3.12026327,4629.2,4629.1,0.0008]
[1755251654659,3.10010046,4629.2,4629.1,0.0008]
[1755251655160,0.9399,4629.2,4629.1,0.0008]
[1755251655570,3.288,4629.3,4629.1,0.0008]
[1755251656366,3.291,4629.4,4629.1,0.0008]
[1755251656569,2.16020046,4629.2,4629.1,0.0008]
[1755251657034,3.10010046,4629.2,4629.1,0.0008]
[1755251657233,6.10010046,4629.2,4629.1,0.0008]
[1755251658243,8.47937438,4629.2,4629.1,0.0008]
[1755251660639,9.02937438,4629.2,4629.1,0.0008]
[1755251660841,10.54230696,4629.2,4629.1,0.0008]
[1755251661045,8.16303304,4629.2,4629.1,0.0008]
[1755251663454,11.46103304,4629.2,4629.1,0.0008]
[1755251664838,2.71034046,4628.9,4628.8,0.001]
[1755251665072,22.95945966,4628.9,4628.8,0.001]
[1755251665371,23.82919685,4628.9,4628.8,0.001]
[1755251665677,23.9874288,4628.9,4628.8,0.001]
[1755251666973,23.9874288,4628.9,4628.8,1e-08]
[1755251667479,24.0739828,4628.9,4628.8,1e-08]
[1755251669648,24.53190285,4628.9,4628.8,1e-08]
[1755251671879,0.55,4628.7,4628.6,1e-08]
[1755251672080,5.73059662,4628.7,4628.6,1e-08]
[1755251672250,9.89533381,4628.7,4628.6,1e-08]
[1755251672653,9.98188981,4628.7,4628.6,1e-08]
[1755251672852,11.49482239,4628.7,4628.6,1e-08]
[1755251673052,11.95274244,4628.7,4628.6,1e-08]
[1755251675176,14.33201636,4628.7,4628.6,1e-08]
[1755251675777,11.03701636,4628.7,4628.6,1e-08]
[1755251675971,14.33601636,4628.7,4628.6,1e-08]
[1755251676358,10.14711636,4628.7,4628.6,1e-08]
[1755251676564,13.35956036,4628.7,4628.6,1e-08]
[1755251677195,20.39956036,4628.7,4628.6,1e-08]
[1755251677900,20.39876036,4628.7,4628.6,1e-08]
[1755251680196,19.84756036,4628.7,4628.6,1e-08]
[1755251682396,16.55056036,4628.7,4628.6,1e-08]
[1755251682783,19.84656036,4628.7,4628.6,1e-08]
[1755251685717,19.93310636,4628.7,4628.6,1e-08]
[1755251686976,4.53799272,4628.1,4627.9,0.4305]
[1755251687177,15.39339863,4628.7,4627.9,0.4305]
[1755251687178,3.295,4628.0,4627.9,0.4305]
[1755251687804,3.295,4628.0,4627.9,0.9012]
[1755251688172,5.45576058,4628.0,4627.9,0.9012]
[1755251689298,3.295,4628.0,4627.9,0.9012]
[1755251690214,3.0,4628.6,4627.9,0.9012]
[1755251690513,2.16062873,4628.3,4628.0,0.4295]
[1755251690678,3.293,4628.2,4628.0,0.4295]
[1755251690886,3.293,4628.2,4628.1,0.9002]
[1755251692573,0.086546,4628.7,4628.1,0.9002]
[1755251692774,2.16057131,4628.5,4628.2,0.4396]
[1755251692975,5.45258645,4628.4,4627.9,0.0018]
[1755251693315,2.16063929,4628.3,4628.0,0.4881]
[1755251693606,3.292,4628.2,4628.0,0.9277]
[1755251693969,3.292,4628.2,4628.1,0.4396]
[1755251694169,3.292,4628.2,4628.1,0.9277]
[1755251695203,3.292,4628.2,4627.9,0.0018]
[1755251695403,3.292,4628.2,4628.1,0.4396]
[1755251695707,3.292,4628.2,4628.1,0.9277]
[1755251696294,3.292,4628.2,4627.9,0.0018]
[1755251696882,3.292,4628.2,4627.9,0.4899]
[1755251697087,3.292,4628.2,4628.0,0.9277]
[1755251697283,0.086542,4628.8,4628.1,0.46120713]
[1755251697497,3.291,4628.7,4628.1,0.9277]
[1755251697700,5.45144533,4628.7,4628.1,0.9277]
[1755251697902,3.29,4628.6,4628.1,0.9277]
[1755251698113,2.16075873,4628.1,4627.9,0.0018]
[1755251698294,3.29,4628.0,4627.9,0.0018]
[1755251699009,3.29,4628.0,4627.9,0.4414]
[1755251700679,3.29,4628.0,4627.9,0.0018]
[1755251704715,5.66727391,4628.0,4627.9,0.0018]
[1755251705086,5.66527391,4628.0,4627.9,0.0018]
[1755251705281,5.66527391,4628.0,4627.9,0.9295]
[1755251705994,5.66527391,4628.0,4627.9,0.4414]
[1755251706719,5.66527391,4628.0,4627.9,0.0018]
[1755251707204,7.82603449,4628.0,4627.9,0.0018]
[1755251707392,5.66527391,4628.0,4627.9,0.0018]
[1755251708813,2.37727391,4628.0,4627.9,0.0018]
[1755251709013,5.66327391,4628.0,4627.9,0.0018]
[1755251709312,5.66327391,4628.0,4627.9,0.9295]
[1755251709813,2.37727391,4628.0,4627.9,3.09030727]
[1755251710993,2.37727391,4628.0,4627.9,0.0018]
[1755251711816,2.37727391,4628.0,4627.9,0.2623241]
[1755251712018,2.37727391,4628.0,4627.9,3.35083137]
[1755251712225,2.37727391,4628.0,4627.9,0.0018]
[1755251714723,2.37727391,4628.0,4627.9,2.16260727]
[1755251715020,2.37727391,4628.0,4627.9,0.0018]
[1755251715425,2.83877391,4628.0,4627.9,0.0018]
[1755251716025,5.00443449,4628.0,4627.9,0.0018]
[1755251716326,5.46593449,4628.0,4627.9,0.0018]
[1755251716688,3.30517391,4628.0,4627.9,0.0018]
[1755251717402,4.53803449,4628.0,4627.9,0.0018]
[1755251717628,5.46593449,4628.0,4627.9,0.0018]
[1755251718291,20.1594511,4628.0,4627.9,0.0018]
[1755251718720,23.1594511,4628.0,4627.9,0.0018]
[1755251719820,7.53357457,4627.7,4627.6,0.001]
[1755251720008,10.81857457,4627.7,4627.6,0.001]
[1755251720203,13.04195374,4627.7,4627.6,0.001]
[1755251725436,13.04195374,4627.7,4626.9,0.001]
[1755251725437,2.37167391,4627.0,4626.9,0.001]
[1755251725624,5.65567391,4627.0,4626.9,0.001]
[1755251726014,2.37167391,4627.0,4626.9,0.001]
[1755251726214,5.65567391,4627.0,4626.9,0.001]
[1755251726614,2.37167391,4627.0,4626.9,0.001]
[1755251726807,5.65567391,4627.0,4626.9,0.001]
[1755251730242,2.37167391,4627.0,4626.9,0.9187]
[1755251730538,2.37167391,4627.0,4626.9,3.38808498]
[1755251730767,2.37167391,4627.0,4626.9,1.2268107]
[1755251730939,2.37167391,4627.0,4626.9,0.9187]
[1755251731937,2.37167391,4627.0,4626.9,0.001]
[1755251733336,2.37167391,4627.0,4626.9,0.4375]
[1755251734318,2.37167391,4627.0,4626.9,0.001]
[1755251738340,6.56127391,4627.0,4626.9,0.001]
[1755251738844,8.72250148,4627.0,4626.9,0.001]
[1755251740428,9.81086732,4627.0,4626.9,0.001]
[1755251742245,4.53194819,4626.9,4626.8,0.001]
[1755251742550,5.43854819,4626.9,4626.8,0.001]
[1755251742747,8.43854819,4626.9,4626.8,0.001]
[1755251743129,8.52512719,4626.9,4626.8,0.001]
[1755251743324,9.82350074,4626.9,4626.8,0.001]
[1755251748218,13.10650074,4626.9,4626.8,0.001]
[1755251750771,13.10750074,4626.9,4626.8,0.0018]
[1755251752159,26.70975713,4626.9,4626.8,0.0018]
[1755251752853,0.55,4626.5,4626.3,0.001]
[1755251753026,3.0,4626.3,4624.7,0.4731]
[1755251753229,2.1621492,4625.1,4624.7,0.4731]
[1755251753450,3.288,4625.0,4624.8,0.4648]
[1755251753960,3.288,4625.0,4624.9,0.4731]
[1755251754257,3.288,4625.0,4624.9,0.9379]
[1755251755057,7.82087305,4625.0,4624.6,0.9379]
[1755251755261,6.65696348,4625.0,4624.2,0.4648]
[1755251755460,2.16220891,4624.9,4624.0,0.4731]
[1755251755773,2.16236412,4624.6,4624.0,0.4731]
[1755251755928,3.29,4624.5,4624.0,0.4731]
[1755251756324,3.29,4624.5,4624.1,0.4648]
[1755251756549,3.29,4624.5,4623.9,0.4761]